lending/lending_fUSD_20250920
["ID","MTS","AMOUNT","RATE_DAILY","PERIOD"]
[386512637,1758328243398,-587.96,0.0001951,2]
[386512638,1758328243408,-484.4,0.0001951,2]
[386512639,1758328243417,-573.11,0.0001951,2]
[386512640,1758328243428,-641.78,0.0001951,2]
[386512641,1758328243438,-511.82,0.0001951,2]
[386512642,1758328243448,-429.76,0.0001951,2]
[386512643,1758328243458,-400.0,0.0001951,2]
[386512644,1758328243467,-1358.05,0.0001951,2]
[386512645,1758328243477,-1194.08,0.0001951,2]
[386512646,1758328243489,-817.99,0.0001951,2]
[386512647,1758328243499,-400.0,0.0001951,2]
[386512648,1758328243509,-400.0,0.0001951,2]
[386512649,1758328243518,-643.51,0.0001951,2]
[386512650,1758328243528,-581.08,0.0001951,2]
[386512651,1758328243538,-414.6,0.0001951,2]
[386512652,1758328243548,-788.77,0.0001951,2]
[386512653,1758328243558,-442.51,0.0001951,2]
[386512654,1758328243568,-400.0,0.0001951,2]
[386512655,1758328243577,-654.78,0.0001951,2]
[386512656,1758328243588,-400.0,0.0001951,2]
[386512657,1758328243598,-400.0,0.0001951,2]
[386512658,1758328243608,-452.23,0.0001951,2]
[386512659,1758328243625,-1792.1,0.0001951,2]
[386512660,1758328243635,-442.14,0.0001951,2]
[386512661,1758328243645,-520.04,0.0001951,2]
[386512662,1758328243655,-400.0,0.0001951,2]
[386512663,1758328243665,-1912.77,0.0001951,2]
[386512664,1758328243674,-479.0,0.0001951,2]
[386512665,1758328243684,-1286.77,0.0001951,2]
[386512666,1758328243694,-649.27,0.0001951,2]
[386512667,1758328243704,-432.22,0.0001951,2]
[386512668,1758328243713,-641.68,0.0001951,2]
[386512669,1758328243723,-400.0,0.0001951,2]
[386512670,1758328243733,-400.0,0.0001951,2]
[386512671,1758328243743,-965.96,0.0001951,2]
[386512672,1758328243752,-1467.85,0.0001951,2]
[386512673,1758328243762,-400.0,0.0001951,2]
[386512674,1758328243772,-864.34,0.0001951,2]
[386512675,1758328243782,-400.0,0.0001951,2]
[386512676,1758328243792,-498.7,0.0001951,2]
[386512677,1758328243801,-454.39,0.0001951,2]
[386512678,1758328243811,-692.3,0.0001951,2]
[386512680,1758328243823,-1942.16,0.0001951,2]
[386512682,1758328243833,-486.06,0.0001951,2]
[386512683,1758328243843,-1359.08,0.0001951,2]
[386512684,1758328243853,-400.0,0.0001951,2]
[386512685,1758328243863,-1821.7,0.0001951,2]
[386512686,1758328243873,-731.0,0.0001951,2]
[386512687,1758328243883,-443.04,0.0001951,2]
[386512688,1758328243894,-400.0,0.0001951,2]
[386512690,1758328243905,-449.77,0.0001951,2]
[386512692,1758328243916,-400.0,0.0001951,2]
[386512694,1758328243925,-400.0,0.0001951,2]
[386512695,1758328243935,-660.16,0.0001951,2]
[386512696,1758328243944,-648.46,0.0001951,2]
[386512697,1758328243954,-459.67,0.0001951,2]
[386512698,1758328243964,-400.0,0.0001951,2]
[386512699,1758328243974,-400.0,0.0001951,2]
[386512700,1758328243984,-1468.99,0.0001951,2]
[386512701,1758328243995,-409.76,0.0001951,2]
[386512702,1758328244005,-438.64,0.0001951,2]
[386512703,1758328244016,-418.33,0.0001951,2]
[386512704,1758328244026,-400.0,0.0001951,2]
[386512705,1758328244036,-400.0,0.0001951,2]
[386512706,1758328244046,-683.51,0.0001951,2]
[386512707,1758328244056,-219.78551111,0.0001951,2]
[386512709,1758328244066,-1360.28,0.0001951,2]
[386512710,1758328244075,-926.31,0.0001951,2]
[386512711,1758328244085,-580.58,0.0001951,2]
[386512712,1758328244095,-400.0,0.0001951,2]
[386512713,1758328244104,-1021.35,0.0001951,2]
[386512714,1758328244114,-500.0,0.0001951,2]
[386512715,1758328244123,-400.0,0.0001951,2]
[386512716,1758328244133,-938.28,0.0001951,2]
[386512717,1758328244144,-400.0,0.0001951,2]
[386512718,1758328244154,-660.19,0.0001951,2]
[386512719,1758328244163,-400.0,0.0001951,2]
[386512720,1758328244172,-403.23,0.0001951,2]
[386512721,1758328244182,-469.23,0.0001951,2]
[386512722,1758328244191,-400.0,0.0001951,2]
[386512723,1758328244202,-400.0,0.0001951,2]
[386512724,1758328244212,-400.0,0.0001951,2]
[386512725,1758328244222,-697.19,0.0001951,2]
[386512726,1758328244232,-480.76,0.0001951,2]
[386512727,1758328244241,-449.52,0.0001951,2]
[386512728,1758328244250,-400.0,0.0001951,2]
[386512729,1758328244260,-400.0,0.00019511,2]
[386512730,1758328244270,-400.0,0.00019511,2]
[386512731,1758328244279,-400.0,0.00019511,2]
[386512732,1758328244626,-400.0,0.00019511,2]
[386512733,1758328244636,-400.0,0.00019511,2]
[386512734,1758328244651,-400.0,0.00019511,2]
[386512735,1758328244661,-494.16,0.00019511,2]
[386512736,1758328244671,-400.0,0.00019511,2]
[386512737,1758328244681,-400.0,0.00019511,2]
[386512738,1758328244690,-400.0,0.00019511,2]
[386512739,1758328244699,-400.0,0.00019511,2]
[386512740,1758328244709,-1007.6,0.00019511,2]
[386512741,1758328244718,-400.0,0.00019511,2]
[386512742,1758328244728,-400.0,0.00019511,2]
[386512743,1758328244738,-400.0,0.00019511,2]
[386512744,1758328244747,-400.02,0.00019511,2]
[386512745,1758328244757,-534.45,0.00019511,2]
[386512746,1758328244766,-400.0,0.00019511,2]
[386512747,1758328244775,-400.0,0.00019511,2]
[386512748,1758328244785,-423.1,0.00019511,2]
[386512749,1758328244795,-400.0,0.00019511,2]
[386512750,1758328244804,-400.0,0.00019511,2]
[386512751,1758328244814,-400.0,0.00019511,2]
[386512752,1758328244826,-400.0,0.00019511,2]
[386512753,1758328244836,-400.0,0.00019511,2]
[386512754,1758328244846,-400.0,0.00019511,2]
[386512755,1758328244856,-466.44,0.00019511,2]
[386512756,1758328244866,-400.0,0.00019511,2]
[386512757,1758328244875,-400.0,0.00019511,2]
[386512758,1758328244886,-400.0,0.00019511,2]
[386512759,1758328244896,-400.0,0.00019511,2]
[386512760,1758328244906,-470.96,0.00019511,2]
[386512761,1758328244916,-425.34,0.00019511,2]
[386512762,1758328244927,-423.21,0.00019511,2]
[386512763,1758328244937,-625.93,0.00019511,2]
[386512764,1758328244947,-400.0,0.00019511,2]
[386512765,1758328244957,-607.33,0.00019511,2]
[386512766,1758328244967,-400.0,0.00019511,2]
[386512767,1758328244977,-400.0,0.00019511,2]
[386512768,1758328244987,-400.0,0.00019511,2]
[386512769,1758328244997,-431.22,0.00019511,2]
[386512770,1758328245010,-400.0,0.00019511,2]
[386512771,1758328245019,-400.0,0.00019511,2]
[386512772,1758328245029,-418.33,0.00019511,2]
[386512773,1758328245039,-400.0,0.00019511,2]
[386512774,1758328245049,-400.0,0.00019511,2]
[386512775,1758328245059,-400.0,0.00019511,2]
[386512776,1758328245068,-400.0,0.00019511,2]
[386512777,1758328245078,-778.46,0.00019511,2]
[386512778,1758328245087,-400.0,0.00019511,2]
[386512779,1758328245097,-400.0,0.00019511,2]
[386512780,1758328245107,-400.0,0.00019511,2]
[386512781,1758328245118,-881.92,0.00019511,2]
[386512782,1758328245127,-400.0,0.00019511,2]
[386512783,1758328245137,-419.55,0.00019511,2]
[386512784,1758328245147,-400.0,0.00019511,2]
[386512785,1758328245156,-512.99,0.00019511,2]
[386512786,1758328245166,-400.0,0.00019511,2]
[386512787,1758328245175,-400.0,0.00019511,2]
[386512788,1758328245184,-400.0,0.00019511,2]
[386512789,1758328245194,-579.4,0.00019511,2]
[386512790,1758328245204,-400.0,0.00019511,2]
[386512791,1758328245214,-516.7,0.00019511,2]
[386512792,1758328245224,-400.0,0.00019511,2]
[386512793,1758328245239,-400.0,0.00019511,2]
[386512794,1758328245250,-400.0,0.00019511,2]
[386512795,1758328245261,-400.0,0.00019511,2]
[386512796,1758328245272,-512.75,0.00019511,2]
[386512797,1758328245284,-400.0,0.00019511,2]
[386512798,1758328245294,-462.39,0.00019511,2]
[386512799,1758328245305,-466.72,0.00019511,2]
[386512800,1758328245315,-430.85,0.00019511,2]
[386512801,1758328245325,-502.76,0.00019511,2]
[386512802,1758328245336,-400.0,0.00019511,2]
[386512803,1758328245347,-400.0,0.00019511,2]
[386512804,1758328245358,-400.0,0.00019511,2]
[386512805,1758328245368,-400.0,0.00019511,2]
[386512806,1758328245378,-454.32,0.00019511,2]
[386512807,1758328245389,-688.93,0.00019511,2]
[386512808,1758328245400,-503.61,0.00019511,2]
[386512809,1758328245411,-402.06,0.00019511,2]
[386512810,1758328245422,-404.25,0.00019511,2]
[386512811,1758328245432,-404.84,0.00019511,2]
[386512812,1758328245443,-749.8,0.00019511,2]
[386512813,1758328245453,-510.31,0.00019511,2]
[386512814,1758328245463,-400.0,0.00019511,2]
[386512815,1758328245474,-400.0,0.00019511,2]
[386512816,1758328245486,-1377.48,0.00019511,2]
[386512817,1758328245497,-400.0,0.00019511,2]
[386512818,1758328245508,-400.0,0.00019511,2]
[386512819,1758328245519,-400.0,0.00019511,2]
[386512820,1758328245530,-433.67,0.00019511,2]
[386512821,1758328245540,-499.05,0.00019511,2]
[386512822,1758328245551,-485.16,0.00019511,2]
[386512823,1758328245562,-620.59,0.00019511,2]
[386512824,1758328245572,-437.62,0.00019511,2]
[386512825,1758328245582,-486.5,0.00019511,2]
[386512826,1758328245593,-695.06,0.00019511,2]
[386512827,1758328245603,-529.92,0.00019511,2]
[386512828,1758328245822,-424.51,0.00019511,2]
[386512829,1758328245835,-479.74,0.00019511,2]
[386512830,1758328245846,-1000.0,0.00019511,2]
[386512831,1758328245857,-409.39,0.00019511,2]
[386512832,1758328245874,-575.44,0.00019511,2]
[386512833,1758328245886,-905.7,0.00019511,2]
[386512834,1758328245897,-460.47,0.00019511,2]
[386512835,1758328245909,-520.54,0.00019511,2]
[386512836,1758328245920,-500.86,0.00019511,2]
[386512837,1758328245931,-719.48,0.00019511,2]
[386512838,1758328245942,-727.83,0.00019511,2]
[386512839,1758328245954,-538.33,0.00019511,2]
[386512840,1758328245965,-423.9,0.00019511,2]
[386512841,1758328245975,-565.33,0.00019511,2]
[386512842,1758328245986,-400.0,0.00019511,2]
[386512843,1758328245996,-856.48,0.00019511,2]
[386512844,1758328246007,-727.23,0.00019511,2]
[386512845,1758328246018,-577.64,0.00019511,2]
[386512846,1758328246029,-408.07,0.00019511,2]
[386512847,1758328246039,-639.78,0.00019511,2]
[386512848,1758328246050,-400.0,0.00019511,2]
[386512849,1758328246061,-991.72,0.00019511,2]
[386512850,1758328246071,-646.26,0.00019511,2]
[386512851,1758328246082,-572.94,0.00019511,2]
[386512852,1758328246094,-3212.61,0.00019511,2]
[386512853,1758328246105,-400.0,0.00019511,2]
[386512854,1758328246117,-553.23,0.00019511,2]
[386512855,1758328246127,-3189.33,0.00019511,2]
[386512856,1758328246138,-564.71,0.00019511,2]
[386512857,1758328246149,-534.39,0.00019511,2]
[386512858,1758328246160,-546.92,0.00019511,2]
[386512859,1758328246170,-1021.56,0.00019511,2]
[386512861,1758328246180,-400.0,0.00019511,2]
[386512863,1758328246190,-633.89,0.00019511,2]
[386512864,1758328246201,-521.19,0.00019511,2]
[386512865,1758328246211,-457.37,0.00019511,2]
[386512866,1758328246222,-517.95,0.00019511,2]
[386512867,1758328246232,-400.0,0.00019511,2]
[386512868,1758328246242,-569.78,0.00019511,2]
[386512869,1758328246252,-644.39,0.00019511,2]
[386512870,1758328246263,-1421.26,0.00019511,2]
[386512871,1758328246273,-1843.4,0.00019511,2]
[386512872,1758328246287,-511.91,0.00019511,2]
[386512873,1758328246296,-658.65,0.00019511,2]
[386512874,1758328246307,-551.2,0.00019511,2]
[386512875,1758328246317,-449.97,0.00019511,2]
[386512876,1758328246327,-638.53,0.00019511,2]
[386512877,1758328246338,-446.93,0.00019511,2]
[386512878,1758328246348,-820.42,0.00019511,2]
[386512879,1758328246358,-400.0,0.00019511,2]
[386512880,1758328246368,-729.65,0.00019511,2]
[386512881,1758328246379,-400.0,0.00019511,2]
[386512882,1758328246389,-734.48,0.00019511,2]
[386512883,1758328246400,-453.27,0.00019511,2]
[386512884,1758328246410,-3356.51,0.00019511,2]
[386512885,1758328246421,-330.0,0.00019526,2]
[386512886,1758328246431,-330.0,0.00019564,2]
[386512887,1758328246442,-330.0,0.0001958,2]
[386512888,1758328246452,-411.44,0.000196,2]
[386512889,1758328246463,-150.0,0.000196,2]
[386512890,1758328246474,-4174.0,0.00019601,2]
[386512891,1758328246484,-921.0,0.00019601,2]
[386512892,1758328246495,-1012.56,0.00019611,2]
[386512893,1758328246506,-585.74,0.00019611,2]
[386512894,1758328246520,-400.0,0.00019611,2]
[386512895,1758328246530,-420.06,0.00019611,2]
[386512896,1758328246541,-543.6,0.00019611,2]
[386512897,1758328246553,-504.66,0.00019611,2]
[386512898,1758328246563,-253.20783355,0.00019671,2]
[386512899,1758328246574,-253.20783349,0.00019696,2]
[386512900,1758328246585,-167.18,0.000197,2]
[386512901,1758328246595,-411.23,0.000197,2]
[386512902,1758328246606,-330.0,0.00019713,2]
[386512903,1758328246617,-253.20783349,0.00019722,2]
[386512904,1758328246627,-208.76018483,0.00019726,2]
[386512905,1758328246638,-845.34823673,0.00019731,2]
[386512906,1758328246648,-330.0,0.00019734,2]
[386512907,1758328246659,-253.20783349,0.00019747,2]
[386512908,1758328246669,-400.0,0.00019771,2]
[386512909,1758328246679,-400.0,0.00019771,2]
[386512910,1758328246689,-400.0,0.00019771,2]
[386512911,1758328246700,-400.0,0.00019771,2]
[386512912,1758328246710,-400.0,0.00019771,2]
[386512913,1758328246721,-400.0,0.00019771,2]
[386512914,1758328246732,-400.0,0.00019771,2]
[386512915,1758328246742,-400.0,0.00019771,2]
[386512916,1758328246753,-400.0,0.00019771,2]
[386512917,1758328246765,-400.0,0.00019771,2]
[386512918,1758328246775,-400.0,0.00019771,2]
[386512919,1758328246785,-400.0,0.00019771,2]
[386512920,1758328246795,-506.64,0.00019771,2]
[386512921,1758328246806,-400.0,0.00019771,2]
[386512922,1758328246817,-400.0,0.00019771,2]
[386512923,1758328246832,-400.0,0.00019771,2]
[386512924,1758328246842,-412.1693768,0.00019771,2]
[386512925,1758328246852,-400.0,0.00019771,2]
[386512926,1758328246862,-416.79,0.00019771,2]
[386512927,1758328246872,-400.0,0.00019771,2]
[386512928,1758328246883,-400.0,0.00019771,2]
[386512929,1758328246893,-400.0,0.00019771,2]
[386512930,1758328246904,-400.0,0.00019771,2]
[386512931,1758328246916,-400.0,0.00019771,2]
[386512932,1758328246927,-400.0,0.00019771,2]
[386512933,1758328246938,-400.0,0.00019771,2]
[386512934,1758328246948,-400.0,0.00019771,2]
[386512935,1758328246958,-400.0,0.00019771,2]
[386512936,1758328246970,-400.0,0.00019771,2]
[386512938,1758328246980,-400.0,0.00019771,2]
[386512940,1758328246990,-500.0,0.00019771,2]
[386512942,1758328247001,-400.0,0.00019771,2]
[386512944,1758328247011,-400.0,0.00019771,2]
[386512946,1758328247021,-400.0,0.00019771,2]
[386512948,1758328247031,-400.0,0.00019771,2]
[386512949,1758328247041,-400.0,0.00019771,2]
[386512950,1758328247052,-440.3,0.00019771,2]
[386512951,1758328247061,-515.4,0.00019771,2]
[386512952,1758328247071,-400.0,0.00019771,2]
[386512954,1758328247081,-400.0,0.00019771,2]
[386512956,1758328247092,-400.0,0.00019771,2]
[386512957,1758328247102,-400.0,0.00019771,2]
[386512958,1758328247111,-400.0,0.00019771,2]
[386512959,1758328247121,-400.0,0.00019771,2]
[386512960,1758328247131,-400.0,0.00019771,2]
[386512961,1758328247141,-400.0,0.00019771,2]
[386512962,1758328247151,-400.0,0.00019771,2]
[386512963,1758328247161,-400.0,0.00019771,2]
[386512964,1758328247171,-155.2326747,0.00019771,2]
[386512965,1758328247181,-414.1,0.00019771,2]
[386512966,1758328247191,-400.0,0.00019771,2]
[386512967,1758328247202,-400.0,0.00019771,2]
[386512968,1758328247212,-400.0,0.00019771,2]
[386512969,1758328247222,-400.0,0.00019771,2]
[386512970,1758328247243,-400.0,0.00019771,2]
[386512971,1758328247254,-400.0,0.00019771,2]
[386512972,1758328247265,-400.0,0.00019771,2]
[386512973,1758328247275,-400.0,0.00019771,2]
[386512974,1758328247285,-400.0,0.00019771,2]
[386512975,1758328247295,-400.0,0.00019771,2]
[386512976,1758328247306,-400.0,0.00019771,2]
[386512977,1758328247316,-400.0,0.00019771,2]
[386512978,1758328247326,-400.0,0.00019771,2]
[386512979,1758328247336,-400.0,0.00019771,2]
[386512980,1758328247346,-400.0,0.00019771,2]
[386512981,1758328247356,-400.0,0.00019771,2]
[386512982,1758328247366,-400.0,0.00019771,2]
[386512983,1758328247376,-400.0,0.00019771,2]
[386512984,1758328247386,-400.0,0.00019771,2]
[386512985,1758328247396,-439.82,0.00019771,2]
[386512986,1758328247407,-400.0,0.00019771,2]
[386512987,1758328247417,-400.0,0.00019771,2]
[386512988,1758328247428,-400.0,0.00019771,2]
[386512989,1758328247634,-400.0,0.00019771,2]
[386512990,1758328247645,-400.0,0.00019771,2]
[386512991,1758328247655,-400.0,0.00019771,2]
[386512992,1758328247664,-400.0,0.00019771,2]
[386512993,1758328247674,-400.0,0.00019771,2]
[386512994,1758328247683,-346.99068006,0.00019771,2]
[386512995,1758328247693,-400.0,0.00019771,2]
[386512996,1758328247702,-400.0,0.00019771,2]
[386512997,1758328247712,-424.08,0.00019771,2]
[386512998,1758328247721,-400.0,0.00019771,2]
[386512999,1758328247731,-400.0,0.00019771,2]
[386513000,1758328247741,-400.0,0.00019771,2]
[386513001,1758328247750,-400.0,0.00019771,2]
[386513002,1758328247760,-400.0,0.00019771,2]
[386513003,1758328247769,-400.0,0.00019771,2]
[386513004,1758328247779,-400.0,0.00019771,2]
[386513005,1758328247788,-428.53,0.00019771,2]
[386513006,1758328247798,-400.0,0.00019771,2]
[386513007,1758328247808,-400.0,0.00019771,2]
[386513008,1758328247817,-400.0,0.00019771,2]
[386513009,1758328247831,-400.0,0.00019771,2]
[386513010,1758328247841,-400.0,0.00019771,2]
[386513011,1758328247851,-400.0,0.00019771,2]
[386513012,1758328247862,-400.0,0.00019771,2]
[386513013,1758328247872,-400.0,0.00019771,2]
[386513014,1758328247882,-400.0,0.00019771,2]
[386513015,1758328247891,-400.0,0.00019771,2]
[386513016,1758328247902,-400.0,0.00019771,2]
[386513017,1758328247911,-400.0,0.00019771,2]
[386513018,1758328247921,-403.85,0.00019771,2]
[386513019,1758328247931,-400.0,0.00019771,2]
[386513020,1758328247940,-400.0,0.00019771,2]
[386513021,1758328247949,-400.0,0.00019771,2]
[386513022,1758328247959,-400.0,0.00019771,2]
[386513023,1758328247970,-509.97,0.00019771,2]
[386513024,1758328247979,-400.0,0.00019771,2]
[386513025,1758328247992,-611.88,0.00019771,2]
[386513026,1758328248002,-413.93,0.00019771,2]
[386513027,1758328248012,-400.0,0.00019771,2]
[386513028,1758328248021,-459.46,0.00019771,2]
[386513029,1758328248031,-400.0,0.00019771,2]
[386513030,1758328248040,-400.0,0.00019771,2]
[386513031,1758328248050,-400.0,0.00019771,2]
[386513032,1758328248059,-400.0,0.00019771,2]
[386513033,1758328248069,-400.0,0.00019771,2]
[386513034,1758328248079,-400.0,0.00019771,2]
[386513035,1758328248088,-400.0,0.00019771,2]
[386513036,1758328248098,-400.0,0.00019771,2]
[386513037,1758328248108,-499.33255902,0.00019771,2]
[386513038,1758328248118,-400.0,0.00019771,2]
[386513039,1758328248128,-159.09717066,0.00019771,2]
[386513040,1758328248137,-400.0,0.00019771,2]
[386513041,1758328248148,-400.0,0.00019771,2]
[386513042,1758328248157,-400.0,0.00019771,2]
[386513043,1758328248167,-400.0,0.00019771,2]
[386513044,1758328248176,-400.0,0.00019771,2]
[386513045,1758328248185,-400.0,0.00019771,2]
[386513046,1758328248195,-400.0,0.00019771,2]
[386513047,1758328248204,-253.20783349,0.00019773,2]
[386513048,1758328248213,-429.23,0.00019784,2]
[386513049,1758328248222,-434.31,0.00019784,2]
[386513050,1758328248232,-400.0,0.00019784,2]
[386513051,1758328248241,-400.0,0.00019784,2]
[386513052,1758328248251,-424.87,0.00019784,2]
[386513053,1758328248261,-400.0,0.00019784,2]
[386513054,1758328248271,-400.0,0.00019784,2]
[386513055,1758328248280,-412.64,0.00019784,2]
[386513056,1758328248290,-174.507017,0.00019784,2]
[386513057,1758328248300,-277.782367,0.00019784,2]
[386513058,1758328248309,-400.0,0.00019784,2]
[386513059,1758328248319,-293.780617,0.00019784,2]
[386513060,1758328248328,-400.0,0.00019784,2]
[386513061,1758328248338,-400.0,0.00019784,2]
[386513062,1758328248348,-400.0,0.00019784,2]
[386513063,1758328248359,-400.0,0.00019784,2]
[386513064,1758328248369,-400.0,0.00019784,2]
[386513065,1758328248379,-400.0,0.00019784,2]
[386513066,1758328248388,-400.0,0.00019784,2]
[386513067,1758328248399,-400.0,0.00019784,2]
[386513068,1758328248408,-400.0,0.00019784,2]
[386513069,1758328248418,-410.16,0.00019784,2]
[386513070,1758328248429,-400.0,0.00019784,2]
[386513071,1758328248439,-400.0,0.00019784,2]
[386513072,1758328248449,-442.02,0.00019784,2]
[386513073,1758328248459,-400.0,0.00019784,2]
[386513074,1758328248469,-400.0,0.00019784,2]
[386513075,1758328248478,-400.0,0.00019784,2]
[386513076,1758328248487,-400.27,0.00019784,2]
[386513077,1758328248497,-400.0,0.00019784,2]
[386513078,1758328248507,-400.0,0.00019784,2]
[386513079,1758328248517,-400.0,0.00019784,2]
[386513080,1758328248527,-400.0,0.00019784,2]
[386513081,1758328248538,-400.0,0.00019784,2]
[386513082,1758328248549,-400.0,0.00019784,2]
[386513083,1758328248559,-400.0,0.00019784,2]
[386513084,1758328248570,-400.0,0.00019784,2]
[386513085,1758328248580,-400.0,0.00019784,2]
[386513086,1758328248590,-477.68,0.00019784,2]
[386513087,1758328248600,-400.0,0.00019784,2]
[386513088,1758328248610,-422.01,0.00019784,2]
[386513089,1758328248620,-400.0,0.00019784,2]
[386513090,1758328248630,-431.25,0.00019784,2]
[386513091,1758328248641,-435.91,0.00019784,2]
[386513092,1758328248651,-472.07,0.00019784,2]
[386513093,1758328248661,-400.0,0.00019784,2]
[386513094,1758328248671,-400.0,0.00019784,2]
[386513095,1758328248681,-408.88,0.00019784,2]
[386513096,1758328248691,-400.0,0.00019784,2]
[386513097,1758328248701,-400.0,0.00019784,2]
[386513098,1758328248710,-400.0,0.00019784,2]
[386513099,1758328248721,-400.0,0.00019784,2]
[386513100,1758328248731,-477.91,0.00019784,2]
[386513101,1758328248741,-400.0,0.00019784,2]
[386513102,1758328248751,-400.0,0.00019784,2]
[386513103,1758328248760,-498.67,0.00019784,2]
[386513104,1758328248771,-428.85,0.00019784,2]
[386513105,1758328248780,-400.0,0.00019784,2]
[386513106,1758328248791,-509.96,0.00019784,2]
[386513107,1758328248800,-400.0,0.00019784,2]
[386513108,1758328248810,-447.0,0.00019784,2]
[386513109,1758328248819,-410.54,0.00019784,2]
[386513110,1758328248834,-628.12,0.00019784,2]
[386513111,1758328248844,-416.96,0.00019784,2]
[386513112,1758328248854,-573.15,0.00019784,2]
[386513113,1758328248863,-712.28,0.00019784,2]
[386513114,1758328248872,-623.1,0.00019784,2]
[386513115,1758328248882,-799.5,0.00019784,2]
[386513116,1758328248892,-495.52,0.00019784,2]
[386513117,1758328248902,-409.84,0.00019784,2]
[386513118,1758328248911,-400.0,0.00019784,2]
[386513119,1758328248921,-1395.42,0.00019784,2]
[386513120,1758328248930,-426.61,0.00019784,2]
[386513121,1758328248940,-400.0,0.00019784,2]
[386513122,1758328248949,-400.0,0.00019784,2]
[386513123,1758328248959,-541.26,0.00019784,2]
[386513124,1758328248969,-400.0,0.00019784,2]
[386513125,1758328248979,-737.18,0.00019784,2]
[386513126,1758328248988,-400.0,0.00019784,2]
[386513127,1758328248999,-400.0,0.00019784,2]
[386513128,1758328249009,-505.26,0.00019784,2]
[386513129,1758328249022,-643.2,0.00019784,2]
[386513130,1758328249032,-585.49,0.00019784,2]
[386513131,1758328249041,-400.0,0.00019784,2]
[386513132,1758328249051,-400.0,0.00019784,2]
[386513133,1758328249062,-521.6,0.00019784,2]
[386513134,1758328249071,-595.64,0.00019784,2]
[386513135,1758328249082,-400.0,0.00019784,2]
[386513136,1758328249091,-612.63,0.00019784,2]
[386513137,1758328249101,-400.0,0.00019784,2]
[386513138,1758328249111,-567.5,0.00019784,2]
[386513139,1758328249121,-1373.1,0.00019784,2]
[386513140,1758328249130,-400.0,0.00019784,2]
[386513141,1758328249140,-404.12,0.00019784,2]
[386513142,1758328249150,-400.0,0.00019784,2]
[386513143,1758328249159,-500.0,0.00019784,2]
[386513144,1758328249169,-676.17,0.00019784,2]
[386513145,1758328249179,-400.0,0.00019784,2]
[386513146,1758328249189,-1693.98,0.00019784,2]
[386513147,1758328249199,-407.26,0.00019784,2]
[386513148,1758328249208,-461.53,0.00019784,2]
[386513149,1758328249219,-1811.75,0.00019784,2]
[386513150,1758328249228,-587.96,0.00019784,2]
[386513151,1758328249238,-484.4,0.00019784,2]
[386513152,1758328249248,-573.11,0.00019784,2]